[Event "Late-Titled-Tuesday-Blitz-April-02-2024"]
[Site "Chess.com"]
[Date "2024.04.02"]
[Round "10"]
[White "AryanTari"]
[Black "temus_galaktionov"]
[Result "1/2-1/2"]
[WhiteElo "2971"]
[BlackElo "2878"]
[TimeControl "180+1"]
[EndTime "15:54:06 PDT"]
[Termination "Game drawn - insufficient material"]

1. e4 {[%clk 0:03:00.9]} 1... c6 {[%clk 0:03:00.5]} 2. d4 {[%clk 0:03:00.5]}
2... g6 {[%clk 0:03:01.4]} 3. Nc3 {[%clk 0:02:55.4]} 3... Bg7 {[%clk 0:03:01.4]}
4. h3 {[%clk 0:02:53]} 4... d6 {[%clk 0:03:00.7]} 5. Nf3 {[%clk 0:02:52.4]} 5...
Nd7 {[%clk 0:02:58.9]} 6. Be3 {[%clk 0:02:51.3]} 6... e5 {[%clk 0:02:56.3]} 7.
Qd2 {[%clk 0:02:46.3]} 7... Ngf6 {[%clk 0:02:51.4]} 8. O-O-O {[%clk 0:02:43.9]}
8... Qa5 {[%clk 0:02:48.8]} 9. Bh6 {[%clk 0:01:46.2]} 9... Bxh6 {[%clk 0:02:36]}
10. Qxh6 {[%clk 0:01:45.9]} 10... b5 {[%clk 0:02:31.6]} 11. dxe5 {[%clk
0:01:44.5]} 11... dxe5 {[%clk 0:02:30]} 12. Nxe5 {[%clk 0:01:39.4]} 12... b4
{[%clk 0:01:12.8]} 13. Nc4 {[%clk 0:01:33.7]} 13... Qh5 {[%clk 0:00:34.8]} 14.
Qxh5 {[%clk 0:01:26.8]} 14... Nxh5 {[%clk 0:00:31.4]} 15. Ne2 {[%clk 0:01:20.5]}
15... Ke7 {[%clk 0:00:29.7]} 16. Nd4 {[%clk 0:01:20.8]} 16... Nb8 {[%clk
0:00:28.5]} 17. g3 {[%clk 0:01:16.6]} 17... Ba6 {[%clk 0:00:25.1]} 18. Ne5
{[%clk 0:01:15.4]} 18... Bb7 {[%clk 0:00:23]} 19. Bc4 {[%clk 0:01:13]} 19... f6
{[%clk 0:00:22.8]} 20. Nd3 {[%clk 0:01:05.1]} 20... Nd7 {[%clk 0:00:23]} 21.
Nxb4 {[%clk 0:01:03]} 21... c5 {[%clk 0:00:22.3]} 22. Ndc6+ {[%clk 0:01:03.3]}
22... Ke8 {[%clk 0:00:20.2]} 23. Ba6 {[%clk 0:00:58.4]} 23... Bxa6 {[%clk
0:00:17.6]} 24. Nxa6 {[%clk 0:00:59.3]} 24... Rc8 {[%clk 0:00:16.4]} 25. Rd6
{[%clk 0:00:59.2]} 25... Nb6 {[%clk 0:00:14.1]} 26. Nxc5 {[%clk 0:00:54.2]}
26... Kf7 {[%clk 0:00:12.8]} 27. Rhd1 {[%clk 0:00:51.5]} 27... Rhe8 {[%clk
0:00:13.2]} 28. b3 {[%clk 0:00:50]} 28... Kg8 {[%clk 0:00:13.2]} 29. a4 {[%clk
0:00:48.7]} 29... Rc7 {[%clk 0:00:11.6]} 30. a5 {[%clk 0:00:48.5]} 30... Nc8
{[%clk 0:00:11.8]} 31. Rd8 {[%clk 0:00:48.2]} 31... Rxd8 {[%clk 0:00:11.4]} 32.
Rxd8+ {[%clk 0:00:48.2]} 32... Kf7 {[%clk 0:00:11.9]} 33. Rd7+ {[%clk
0:00:37.3]} 33... Rxd7 {[%clk 0:00:12.2]} 34. Nxd7 {[%clk 0:00:38.2]} 34... Ke6
{[%clk 0:00:13.1]} 35. Ndb8 {[%clk 0:00:34.6]} 35... Kd6 {[%clk 0:00:12.8]} 36.
Kd2 {[%clk 0:00:33.5]} 36... f5 {[%clk 0:00:11.6]} 37. exf5 {[%clk 0:00:33.4]}
37... gxf5 {[%clk 0:00:12.5]} 38. Kd3 {[%clk 0:00:34]} 38... Nf6 {[%clk
0:00:11.9]} 39. Kd4 {[%clk 0:00:33.9]} 39... Ne4 {[%clk 0:00:12]} 40. g4 {[%clk
0:00:34.6]} 40... Nxf2 {[%clk 0:00:11]} 41. gxf5 {[%clk 0:00:35.3]} 41... Nxh3
{[%clk 0:00:11.4]} 42. c4 {[%clk 0:00:35.5]} 42... Ng5 {[%clk 0:00:11.2]} 43.
c5+ {[%clk 0:00:35.8]} 43... Kc7 {[%clk 0:00:11.3]} 44. b4 {[%clk 0:00:33.3]}
44... h5 {[%clk 0:00:07.7]} 45. Ke3 {[%clk 0:00:32.2]} 45... h4 {[%clk
0:00:07.2]} 46. Kf4 {[%clk 0:00:32.6]} 46... h3 {[%clk 0:00:07.6]} 47. Kg3
{[%clk 0:00:33.2]} 47... Kb7 {[%clk 0:00:05.8]} 48. a6+ {[%clk 0:00:30.8]} 48...
Kc7 {[%clk 0:00:06.1]} 49. b5 {[%clk 0:00:31.5]} 49... Ne4+ {[%clk 0:00:04.3]}
50. Kxh3 {[%clk 0:00:32.2]} 50... Nxc5 {[%clk 0:00:05.2]} 51. Kg4 {[%clk
0:00:31]} 51... Nd6 {[%clk 0:00:05.8]} 52. f6 {[%clk 0:00:28.6]} 52... Nce4
{[%clk 0:00:06.2]} 53. Nxa7 {[%clk 0:00:13.4]} 53... Nxf6+ {[%clk 0:00:05.3]}
54. Kg5 {[%clk 0:00:13.2]} 54... Nfe4+ {[%clk 0:00:05.5]} 55. Kf4 {[%clk
0:00:14]} 55... Kxb8 {[%clk 0:00:06]} 56. b6 {[%clk 0:00:14.7]} 56... Nc5 {[%clk
0:00:05.7]} 57. Nc6+ {[%clk 0:00:15.2]} 57... Ka8 {[%clk 0:00:06]} 58. Ke5
{[%clk 0:00:14.3]} 58... Nxa6 {[%clk 0:00:06.1]} 59. Kxd6 {[%clk 0:00:14.5]}
59... Kb7 {[%clk 0:00:07]} 60. Ne5 {[%clk 0:00:09.5]} 60... Kxb6 {[%clk
0:00:07.9]} 1/2-1/2

[Event "Late-Titled-Tuesday-Blitz-April-02-2024"]
[Site "Chess.com"]
[Date "2024.04.02"]
[Round "10"]
[White "Byniolus"]
[Black "Kotlyar_K"]
[Result "1/2-1/2"]
[WhiteElo "2778"]
[BlackElo "2614"]
[TimeControl "180+1"]
[EndTime "15:54:06 PDT"]
[Termination "Game drawn - insufficient material"]

1. d4 {[%clk 0:03:00.9]} 1... Nf6 {[%clk 0:02:58.6]} 2. Nf3 {[%clk 0:03:01.2]}
2... g6 {[%clk 0:02:56.6]} 3. Bf4 {[%clk 0:03:01.5]} 3... d5 {[%clk 0:02:36.4]}
4. e3 {[%clk 0:03:00.7]} 4... Bg7 {[%clk 0:02:30.9]} 5. Be2 {[%clk 0:02:55.8]}
5... O-O {[%clk 0:02:30.8]} 6. O-O {[%clk 0:02:56]} 6... c5 {[%clk 0:02:24.5]}
7. c3 {[%clk 0:02:55.8]} 7... Nc6 {[%clk 0:02:17.7]} 8. Nbd2 {[%clk 0:02:53.6]}
8... Nh5 {[%clk 0:02:11.1]} 9. Bg5 {[%clk 0:02:53.1]} 9... Qb6 {[%clk
0:02:05.3]} 10. Qb3 {[%clk 0:02:49.7]} 10... c4 {[%clk 0:02:02.2]} 11. Qxb6
{[%clk 0:02:48.8]} 11... axb6 {[%clk 0:02:03.1]} 12. e4 {[%clk 0:02:48.8]} 12...
e6 {[%clk 0:02:01.3]} 13. e5 {[%clk 0:02:48.3]} 13... f6 {[%clk 0:01:37.4]} 14.
exf6 {[%clk 0:02:49.2]} 14... Nxf6 {[%clk 0:01:33.3]} 15. Rfe1 {[%clk
0:02:43.6]} 15... Bd7 {[%clk 0:01:33.8]} 16. a3 {[%clk 0:02:43.2]} 16... h6
{[%clk 0:01:29.5]} 17. Bf4 {[%clk 0:02:38.3]} 17... Ne4 {[%clk 0:01:23.8]} 18.
Bc7 {[%clk 0:02:34.2]} 18... Rfc8 {[%clk 0:01:05.8]} 19. Bf4 {[%clk 0:02:29.1]}
19... Rf8 {[%clk 0:01:01.6]} 20. Be3 {[%clk 0:02:21.4]} 20... Nd6 {[%clk
0:00:57]} 21. g4 {[%clk 0:02:10.9]} 21... b5 {[%clk 0:00:53.6]} 22. h3 {[%clk
0:02:08.7]} 22... Rf7 {[%clk 0:00:44]} 23. Nh4 {[%clk 0:02:08]} 23... g5 {[%clk
0:00:40.3]} 24. Ng2 {[%clk 0:02:06.9]} 24... e5 {[%clk 0:00:33.9]} 25. dxe5
{[%clk 0:02:05.4]} 25... Nxe5 {[%clk 0:00:34.8]} 26. f4 {[%clk 0:01:57.9]} 26...
Nd3 {[%clk 0:00:23.2]} 27. Bxd3 {[%clk 0:01:49.9]} 27... cxd3 {[%clk 0:00:24.1]}
28. fxg5 {[%clk 0:01:50.8]} 28... hxg5 {[%clk 0:00:23.7]} 29. Bxg5 {[%clk
0:01:46.6]} 29... Nc4 {[%clk 0:00:24]} 30. Nxc4 {[%clk 0:01:46.4]} 30... bxc4
{[%clk 0:00:21.1]} 31. Ne3 {[%clk 0:01:35.3]} 31... d4 {[%clk 0:00:17.8]} 32.
Nxc4 {[%clk 0:01:10.1]} 32... dxc3 {[%clk 0:00:17.7]} 33. bxc3 {[%clk 0:01:11]}
33... Bxc3 {[%clk 0:00:17.9]} 34. Ne5 {[%clk 0:01:11.9]} 34... Bxa1 {[%clk
0:00:11.6]} 35. Nxf7 {[%clk 0:01:01.6]} 35... Bd4+ {[%clk 0:00:12.1]} 36. Kh2
{[%clk 0:00:57.6]} 36... Kxf7 {[%clk 0:00:12]} 37. Re7+ {[%clk 0:00:57]} 37...
Kg6 {[%clk 0:00:12.4]} 38. Rxd7 {[%clk 0:00:57.9]} 38... Be5+ {[%clk 0:00:12]}
39. Kg2 {[%clk 0:00:58.3]} 39... Kxg5 {[%clk 0:00:11.9]} 40. Rxd3 {[%clk
0:00:59]} 40... Kf4 {[%clk 0:00:09.8]} 41. Rb3 {[%clk 0:00:53.9]} 41... Ra7
{[%clk 0:00:07.3]} 42. Rb4+ {[%clk 0:00:51.3]} 42... Ke3 {[%clk 0:00:05.1]} 43.
a4 {[%clk 0:00:52.2]} 43... Bd6 {[%clk 0:00:04.9]} 44. Rb3+ {[%clk 0:00:48]}
44... Kd4 {[%clk 0:00:04.5]} 45. h4 {[%clk 0:00:45.6]} 45... Kc4 {[%clk
0:00:04.2]} 46. Rb1 {[%clk 0:00:39.3]} 46... Bc5 {[%clk 0:00:04.1]} 47. g5
{[%clk 0:00:38.8]} 47... b6 {[%clk 0:00:04.6]} 48. Kf3 {[%clk 0:00:39.7]} 48...
Kd5 {[%clk 0:00:04.1]} 49. h5 {[%clk 0:00:40.6]} 49... Ke5 {[%clk 0:00:04.4]}
50. g6 {[%clk 0:00:38.2]} 50... Kf6 {[%clk 0:00:04.6]} 51. Ra1 {[%clk
0:00:36.1]} 51... b5 {[%clk 0:00:04.2]} 52. a5 {[%clk 0:00:36]} 52... b4 {[%clk
0:00:03.1]} 53. Ke4 {[%clk 0:00:34.6]} 53... Kg5 {[%clk 0:00:03.3]} 54. Kd5
{[%clk 0:00:33.2]} 54... Bf8 {[%clk 0:00:02.9]} 55. Rf1 {[%clk 0:00:31.5]} 55...
Kxh5 {[%clk 0:00:02.2]} 56. Rxf8 {[%clk 0:00:26.7]} 56... Kxg6 {[%clk
0:00:02.8]} 57. Kc4 {[%clk 0:00:26.5]} 57... Rxa5 {[%clk 0:00:03]} 58. Kxb4
{[%clk 0:00:27.1]} 58... Ra7 {[%clk 0:00:03.7]} 59. Rg8+ {[%clk 0:00:27.2]}
59... Rg7 {[%clk 0:00:04.6]} 60. Rxg7+ {[%clk 0:00:27.5]} 60... Kxg7 {[%clk
0:00:05.5]} 1/2-1/2

[Event "Late-Titled-Tuesday-Blitz-April-02-2024"]
[Site "Chess.com"]
[Date "2024.04.02"]
[Round "10"]
[White "Franmu14"]
[Black "Squirlolz"]
[Result "1-0"]
[WhiteElo "2690"]
[BlackElo "2583"]
[TimeControl "180+1"]
[EndTime "15:54:07 PDT"]
[Termination "Franmu14 won by checkmate"]

1. e4 {[%clk 0:03:00.9]} 1... d6 {[%clk 0:02:57.5]} 2. d4 {[%clk 0:03:00.2]}
2... Nf6 {[%clk 0:02:57]} 3. Nc3 {[%clk 0:03:01.1]} 3... c6 {[%clk 0:02:55.5]}
4. f3 {[%clk 0:03:01.2]} 4... Qb6 {[%clk 0:02:52.4]} 5. Bc4 {[%clk 0:02:55]}
5... e6 {[%clk 0:02:51.2]} 6. Bb3 {[%clk 0:02:55]} 6... d5 {[%clk 0:02:51.6]} 7.
Be3 {[%clk 0:02:53.3]} 7... Nbd7 {[%clk 0:02:51.1]} 8. Qd2 {[%clk 0:02:52.9]}
8... Be7 {[%clk 0:02:39.2]} 9. e5 {[%clk 0:02:50.6]} 9... Ng8 {[%clk 0:02:39.3]}
10. f4 {[%clk 0:02:47.7]} 10... Nh6 {[%clk 0:02:37.9]} 11. Nf3 {[%clk
0:02:45.8]} 11... Nf5 {[%clk 0:02:33.6]} 12. g4 {[%clk 0:02:45]} 12... Nxe3
{[%clk 0:02:33.5]} 13. Qxe3 {[%clk 0:02:45]} 13... c5 {[%clk 0:02:34.1]} 14.
O-O-O {[%clk 0:02:37.4]} 14... cxd4 {[%clk 0:02:17.1]} 15. Nxd4 {[%clk
0:02:34.4]} 15... h6 {[%clk 0:02:06.8]} 16. Kb1 {[%clk 0:02:01.4]} 16... Nc5
{[%clk 0:01:53.9]} 17. f5 {[%clk 0:01:50.4]} 17... Bd7 {[%clk 0:01:53.6]} 18.
Rhe1 {[%clk 0:01:21.4]} 18... O-O-O {[%clk 0:01:29.4]} 19. Bxd5 {[%clk
0:01:19.5]} 19... Bg5 {[%clk 0:01:22.1]} 20. Qg3 {[%clk 0:01:18.3]} 20... exd5
{[%clk 0:01:14.7]} 21. Nxd5 {[%clk 0:01:17.1]} 21... Qa5 {[%clk 0:01:09]} 22. b4
{[%clk 0:00:38.9]} 22... Ne4 {[%clk 0:01:08.8]} 23. bxa5 {[%clk 0:00:30.8]}
23... Nxg3 {[%clk 0:01:08.6]} 24. hxg3 {[%clk 0:00:30.1]} 24... Rhe8 {[%clk
0:00:52.8]} 25. Nf4 {[%clk 0:00:28.6]} 25... Bc6 {[%clk 0:00:28.1]} 26. e6
{[%clk 0:00:22.1]} 26... Bf6 {[%clk 0:00:10.3]} 27. Nxc6 {[%clk 0:00:20.6]}
27... bxc6 {[%clk 0:00:07.1]} 28. exf7 {[%clk 0:00:17.4]} 28... Rxd1+ {[%clk
0:00:07.1]} 29. Rxd1 {[%clk 0:00:18.3]} 29... Rf8 {[%clk 0:00:07.8]} 30. Ne6
{[%clk 0:00:13.2]} 30... Rxf7 {[%clk 0:00:08.2]} 31. Rd6 {[%clk 0:00:13.6]}
31... Kb7 {[%clk 0:00:04]} 32. c3 {[%clk 0:00:12.5]} 32... Be5 {[%clk
0:00:02.8]} 33. Nd8+ {[%clk 0:00:12]} 33... Kc7 {[%clk 0:00:01.6]} 34. Nxf7
{[%clk 0:00:12.3]} 34... Bxd6 {[%clk 0:00:02.3]} 35. Kc2 {[%clk 0:00:09.2]}
35... Bxg3 {[%clk 0:00:02.2]} 36. Kd3 {[%clk 0:00:08]} 36... Be1 {[%clk
0:00:01.6]} 37. c4 {[%clk 0:00:07.5]} 37... Kb7 {[%clk 0:00:02.1]} 38. Nd8+
{[%clk 0:00:07.4]} 38... Kc7 {[%clk 0:00:02.3]} 39. Ne6+ {[%clk 0:00:08.3]}
39... Kd6 {[%clk 0:00:02.8]} 40. Nxg7 {[%clk 0:00:08.6]} 40... Bxa5 {[%clk
0:00:02.6]} 41. f6 {[%clk 0:00:08.4]} 41... Bd8 {[%clk 0:00:02]} 42. Nf5+ {[%clk
0:00:07.5]} 42... Ke6 {[%clk 0:00:02]} 43. Nxh6 {[%clk 0:00:08.4]} 43... Bxf6
{[%clk 0:00:02.5]} 44. Nf5 {[%clk 0:00:08.5]} 44... Ke5 {[%clk 0:00:02.3]} 45.
Nd4 {[%clk 0:00:08.4]} 45... Kf4 {[%clk 0:00:01.5]} 46. Nxc6 {[%clk 0:00:08.7]}
46... a6 {[%clk 0:00:02.2]} 47. Nb4 {[%clk 0:00:08.5]} 47... a5 {[%clk
0:00:02.2]} 48. Nd5+ {[%clk 0:00:09.1]} 48... Kxg4 {[%clk 0:00:01.4]} 49. Nxf6+
{[%clk 0:00:09.7]} 49... Kf5 {[%clk 0:00:01.6]} 50. Nd5 {[%clk 0:00:10.6]} 50...
Ke5 {[%clk 0:00:02.2]} 51. Nc3 {[%clk 0:00:10.8]} 51... Kd6 {[%clk 0:00:03.1]}
52. Ne4+ {[%clk 0:00:10.7]} 52... Kc6 {[%clk 0:00:03.5]} 53. c5 {[%clk
0:00:11.5]} 53... Kb5 {[%clk 0:00:03.8]} 54. Kd4 {[%clk 0:00:11.7]} 54... Ka4
{[%clk 0:00:04.3]} 55. c6 {[%clk 0:00:12.3]} 55... Ka3 {[%clk 0:00:04.8]} 56. c7
{[%clk 0:00:13]} 56... Kxa2 {[%clk 0:00:05.3]} 57. c8=Q {[%clk 0:00:13.6]} 57...
a4 {[%clk 0:00:06.2]} 58. Qc2+ {[%clk 0:00:13.4]} 58... Ka3 {[%clk 0:00:06.7]}
59. Qc3+ {[%clk 0:00:13.4]} 59... Ka2 {[%clk 0:00:07.2]} 60. Qb4 {[%clk
0:00:13.4]} 60... a3 {[%clk 0:00:08.1]} 61. Nc3+ {[%clk 0:00:13.1]} 61... Ka1
{[%clk 0:00:09]} 62. Qxa3# {[%clk 0:00:13.4]} 1-0

[Event "Late-Titled-Tuesday-Blitz-April-02-2024"]
[Site "Chess.com"]
[Date "2024.04.02"]
[Round "10"]
[White "Smiechu"]
[Black "Sanyura"]
[Result "1/2-1/2"]
[WhiteElo "2508"]
[BlackElo "2616"]
[TimeControl "180+1"]
[EndTime "15:54:07 PDT"]
[Termination "Game drawn by repetition"]

1. e4 {[%clk 0:03:00.9]} 1... c5 {[%clk 0:02:59.7]} 2. Nf3 {[%clk 0:03:00.7]}
2... e6 {[%clk 0:03:00.1]} 3. d4 {[%clk 0:02:58.3]} 3... cxd4 {[%clk 0:03:01]}
4. Nxd4 {[%clk 0:02:58.6]} 4... Nf6 {[%clk 0:03:01.3]} 5. Nc3 {[%clk 0:02:59]}
5... Nc6 {[%clk 0:03:01.8]} 6. a3 {[%clk 0:02:58.5]} 6... Be7 {[%clk 0:03:00.9]}
7. Be3 {[%clk 0:02:58.3]} 7... d5 {[%clk 0:03:01.2]} 8. Bb5 {[%clk 0:02:53.6]}
8... Bd7 {[%clk 0:03:00.5]} 9. exd5 {[%clk 0:02:52.8]} 9... exd5 {[%clk
0:03:00.6]} 10. O-O {[%clk 0:02:51.9]} 10... O-O {[%clk 0:03:00.6]} 11. h3
{[%clk 0:02:44.9]} 11... h6 {[%clk 0:02:58.1]} 12. Re1 {[%clk 0:02:42.4]} 12...
Bd6 {[%clk 0:02:57.3]} 13. Nf3 {[%clk 0:02:36]} 13... Bf5 {[%clk 0:02:48.2]} 14.
Bd3 {[%clk 0:02:31.9]} 14... Be6 {[%clk 0:02:41.2]} 15. Ne2 {[%clk 0:02:31.5]}
15... Bc7 {[%clk 0:02:40.8]} 16. Nf4 {[%clk 0:02:19.9]} 16... Re8 {[%clk
0:02:34.1]} 17. Nxe6 {[%clk 0:02:13.4]} 17... Rxe6 {[%clk 0:02:30.2]} 18. Bf5
{[%clk 0:02:11.5]} 18... Re8 {[%clk 0:02:29.6]} 19. g3 {[%clk 0:01:55.9]} 19...
Bb6 {[%clk 0:02:07.5]} 20. Qd2 {[%clk 0:01:35.5]} 20... Ne4 {[%clk 0:01:47.2]}
21. Bxe4 {[%clk 0:01:33.1]} 21... dxe4 {[%clk 0:01:38.6]} 22. Nh2 {[%clk
0:01:22.6]} 22... Qxd2 {[%clk 0:01:19.1]} 23. Bxd2 {[%clk 0:01:21.9]} 23... Nd4
{[%clk 0:01:19.7]} 24. Rac1 {[%clk 0:01:14.5]} 24... Rac8 {[%clk 0:01:18.6]} 25.
Bc3 {[%clk 0:01:04]} 25... e3 {[%clk 0:00:30.2]} 26. fxe3 {[%clk 0:00:56.9]}
26... Nb5 {[%clk 0:00:08.9]} 27. Bd2 {[%clk 0:00:54.3]} 27... Red8 {[%clk
0:00:03.2]} 28. Nf1 {[%clk 0:00:53.2]} 28... Nd6 {[%clk 0:00:02.6]} 29. Kg2
{[%clk 0:00:26.9]} 29... Ne4 {[%clk 0:00:03.5]} 30. Re2 {[%clk 0:00:26.6]} 30...
Nxd2 {[%clk 0:00:03.4]} 31. Nxd2 {[%clk 0:00:19.6]} 31... Bxe3 {[%clk
0:00:03.7]} 32. Rxe3 {[%clk 0:00:17.8]} 32... Rxd2+ {[%clk 0:00:04.4]} 33. Kf3
{[%clk 0:00:17.5]} 33... Rcxc2 {[%clk 0:00:04.8]} 34. Rxc2 {[%clk 0:00:16.9]}
34... Rxc2 {[%clk 0:00:05.7]} 35. Re8+ {[%clk 0:00:10.4]} 35... Kh7 {[%clk
0:00:06]} 36. Re7 {[%clk 0:00:11.3]} 36... Rxb2 {[%clk 0:00:06.5]} 37. Rxf7
{[%clk 0:00:11.2]} 37... Rb3+ {[%clk 0:00:07]} 38. Kf4 {[%clk 0:00:11.3]} 38...
a5 {[%clk 0:00:06.7]} 39. h4 {[%clk 0:00:07.7]} 39... Kg6 {[%clk 0:00:04.2]} 40.
Rc7 {[%clk 0:00:06.5]} 40... b5 {[%clk 0:00:03.1]} 41. Rc6+ {[%clk 0:00:05.2]}
41... Kh7 {[%clk 0:00:03.3]} 42. Rc5 {[%clk 0:00:04]} 42... a4 {[%clk
0:00:02.7]} 43. g4 {[%clk 0:00:02.8]} 43... b4 {[%clk 0:00:03.1]} 44. axb4
{[%clk 0:00:02.7]} 44... Rxb4+ {[%clk 0:00:04]} 45. Kf5 {[%clk 0:00:03.3]} 45...
a3 {[%clk 0:00:03.8]} 46. Ra5 {[%clk 0:00:03.5]} 46... Rb3 {[%clk 0:00:04.1]}
47. g5 {[%clk 0:00:03]} 47... hxg5 {[%clk 0:00:03.7]} 48. hxg5 {[%clk
0:00:03.6]} 48... Rf3+ {[%clk 0:00:04.3]} 49. Kg4 {[%clk 0:00:03.7]} 49... Rb3
{[%clk 0:00:04.9]} 50. Kf5 {[%clk 0:00:04]} 50... Rf3+ {[%clk 0:00:03.2]} 51.
Kg4 {[%clk 0:00:04.2]} 51... Rd3 {[%clk 0:00:03.5]} 52. Kf5 {[%clk 0:00:04.4]}
52... Rf3+ {[%clk 0:00:03.5]} 1/2-1/2

[Event "Late-Titled-Tuesday-Blitz-April-02-2024"]
[Site "Chess.com"]
[Date "2024.04.02"]
[Round "10"]
[White "ritanovikova"]
[Black "Felix-Rose"]
[Result "1-0"]
[WhiteElo "2189"]
[BlackElo "2300"]
[TimeControl "180+1"]
[EndTime "15:54:09 PDT"]
[Termination "ritanovikova won on time"]

1. e4 {[%clk 0:02:58.7]} 1... e5 {[%clk 0:02:58]} 2. Nf3 {[%clk 0:02:58.5]} 2...
Nc6 {[%clk 0:02:58.6]} 3. Bb5 {[%clk 0:02:57.9]} 3... a6 {[%clk 0:02:59]} 4. Ba4
{[%clk 0:02:58.2]} 4... Nf6 {[%clk 0:02:59.3]} 5. O-O {[%clk 0:02:57.5]} 5... b5
{[%clk 0:03:00]} 6. Bb3 {[%clk 0:02:57.4]} 6... Bc5 {[%clk 0:03:00.4]} 7. c3
{[%clk 0:02:56.4]} 7... d6 {[%clk 0:03:00.6]} 8. d4 {[%clk 0:02:55.8]} 8... Bb6
{[%clk 0:03:00.7]} 9. Bd5 {[%clk 0:02:53.9]} 9... Bd7 {[%clk 0:02:49.8]} 10.
dxe5 {[%clk 0:02:51.4]} 10... dxe5 {[%clk 0:02:48.8]} 11. Bg5 {[%clk 0:02:13.3]}
11... h6 {[%clk 0:02:43.8]} 12. Bh4 {[%clk 0:02:12.9]} 12... Qe7 {[%clk
0:02:19.3]} 13. a4 {[%clk 0:02:06.8]} 13... Rb8 {[%clk 0:02:18.3]} 14. axb5
{[%clk 0:02:05.7]} 14... axb5 {[%clk 0:02:19.2]} 15. Na3 {[%clk 0:02:02.5]}
15... O-O {[%clk 0:01:26.5]} 16. Nxb5 {[%clk 0:01:58]} 16... Bxf2+ {[%clk
0:00:55.6]} 17. Rxf2 {[%clk 0:01:53]} 17... Rxb5 {[%clk 0:00:51.9]} 18. Qd3
{[%clk 0:01:39.7]} 18... Rfb8 {[%clk 0:00:49.8]} 19. b4 {[%clk 0:01:34.3]} 19...
Nd8 {[%clk 0:00:35.1]} 20. Bc4 {[%clk 0:01:32]} 20... R5b6 {[%clk 0:00:34.4]}
21. Rd1 {[%clk 0:01:28]} 21... Bg4 {[%clk 0:00:24.9]} 22. Rdd2 {[%clk
0:01:16.6]} 22... Rd6 {[%clk 0:00:20]} 23. Qe3 {[%clk 0:01:16.6]} 23... g5
{[%clk 0:00:16.3]} 24. Nxg5 {[%clk 0:01:05.6]} 24... Rxd2 {[%clk 0:00:16.6]} 25.
Qxd2 {[%clk 0:01:01.6]} 25... Nxe4 {[%clk 0:00:14.4]} 26. Nxe4 {[%clk
0:00:50.6]} 26... Qxh4 {[%clk 0:00:14.8]} 27. Nf6+ {[%clk 0:00:49]} 27... Kh8
{[%clk 0:00:15.2]} 28. Nxg4 {[%clk 0:00:44.8]} 28... Qxg4 {[%clk 0:00:15.3]} 29.
Qxh6+ {[%clk 0:00:43.6]} 29... Kg8 {[%clk 0:00:15.4]} 30. Rf3 {[%clk 0:00:39.3]}
30... Qxf3 {[%clk 0:00:07.1]} 31. gxf3 {[%clk 0:00:39]} 31... Rb6 {[%clk
0:00:06.8]} 32. Qg5+ {[%clk 0:00:38.8]} 32... Rg6 {[%clk 0:00:07]} 33. h4 {[%clk
0:00:39]} 33... Rxg5+ {[%clk 0:00:07.4]} 34. hxg5 {[%clk 0:00:39.9]} 34... Kg7
{[%clk 0:00:08.3]} 35. Bd3 {[%clk 0:00:36.4]} 35... Ne6 {[%clk 0:00:08.6]} 36.
c4 {[%clk 0:00:33.5]} 36... Nxg5 {[%clk 0:00:08.7]} 37. Kf2 {[%clk 0:00:34]}
37... Kf6 {[%clk 0:00:09.2]} 38. c5 {[%clk 0:00:33.7]} 38... Ne6 {[%clk
0:00:09.8]} 39. Bc4 {[%clk 0:00:32.7]} 39... Nd4 {[%clk 0:00:09.9]} 40. Bd5
{[%clk 0:00:31.9]} 40... c6 {[%clk 0:00:09.8]} 41. Bc4 {[%clk 0:00:31.6]} 41...
Ke7 {[%clk 0:00:09.1]} 42. Ke3 {[%clk 0:00:31.9]} 42... f5 {[%clk 0:00:09.6]}
43. f4 {[%clk 0:00:31.9]} 43... Nc2+ {[%clk 0:00:10.1]} 44. Kd2 {[%clk
0:00:30.9]} 44... Nxb4 {[%clk 0:00:10.9]} 45. fxe5 {[%clk 0:00:31.2]} 45... Na6
{[%clk 0:00:11.5]} 46. Bxa6 {[%clk 0:00:30.8]} 46... Ke6 {[%clk 0:00:12.2]} 47.
Kc3 {[%clk 0:00:29.6]} 47... Kxe5 {[%clk 0:00:11.5]} 48. Kb4 {[%clk 0:00:29.8]}
48... Kd4 {[%clk 0:00:11.4]} 49. Bb7 {[%clk 0:00:29.2]} 49... f4 {[%clk
0:00:10.5]} 50. Bxc6 {[%clk 0:00:28.8]} 50... Ke3 {[%clk 0:00:09.8]} 51. Kb5
{[%clk 0:00:27.5]} 1-0